[Event "GER-chT Youth Countries 2020"]
[Site "Berlin"]
[Date "2020.10.03"]
[Round "6"]
[White "Ermitsch, Magnus"]
[Black "Milare, Tyron"]
[Result "0-1"]
[ECO "B53"]
[WhiteElo "2025"]
[BlackElo "2176"]
[Annotator "ChessBase"]
[PlyCount "152"]
[EventDate "2020.09.30"]
[EventType "team-tourn"]
[EventRounds "7"]
[EventCountry "GER"]
[SourceTitle "playchess.com"]
[Source "ChessBase"]
[SourceQuality "1"]
[TimeControl "30/5400+30:0"]

1. e4 {[%emt 0:00:19]} c5 {[%emt 0:00:00]} 2. Nf3 {[%emt 0:00:42]} d6 {[%emt 0:00:19]} 3. d4 {[%emt 0:01:02]} cxd4 {[%emt 0:00:36]} 4. Qxd4 {[%emt 0:00:45]} Nc6 {[%emt 0:00:55]} 5. Bb5 {[%emt 0:00:46]} Bd7 {[%emt 0:00:53]} 6. Bxc6 {[%emt 0:01:20]} Bxc6 {[%emt 0:00:57]} 7. Nc3 {[%emt 0:00:53]} e5 {[%emt 0:01:16]} 8. Qd3 {[%emt 0:00:46]} Be7 {[%emt 0:01:09]} 9. O-O {[%emt 0:01:58]} h6 {[%emt 0:01:17]} 10. b3 {[%emt 0:04:29]} Nf6 {[%emt 0:06:01]} 11. Rd1 {[%emt 0:05:22]} O-O {[%emt 0:01:42]} 12. a4 {[%emt 0:01:25]} Qc8 {[%emt 0:05:23]} 13. Ba3 {[%emt 0:02:49]} Rd8 {[%emt 0:02:28]} 14. h3 {[%emt 0:05:02]} Qe6 {[%emt 0:06:04]} 15. Qe3 {[%emt 0:04:14]} Nh5 {[%emt 0:04:08]} 16. Kh2 {[%emt 0:03:47]} Nf4 {[%emt 0:02:22]} 17. Ne2 {[%emt 0:02:32]} Qg6 {[%emt 0:02:06]} 18. Nxf4 {[%emt 0:03:36]} exf4 {[%emt 0:00:12]} 19. Qxf4 {[%emt 0:13:33]} Bf6 {[%emt 0:04:48]} 20. Rac1 {[%emt 0:01:46]} Bxe4 {[%emt 0:04:09]} 21. Rxd6 {[%emt 0:02:52]} Rxd6 {[%emt 0:03:32]} 22. Bxd6 {[%emt 0:01:49]} Bb2 {[%emt 0:05:26]} 23. Rb1 {[%emt 0:08:26]} Bxf3 {[%emt 0:01:28]} 24. Qg3 {[%emt 0:04:10]} Rd8 {[%emt 0:10:51]} 25. Rxb2 {[%emt 0:04:54]} Qxd6 {[%emt 0:02:22]} 26. Qxd6 {[%emt 0:00:33]} Rxd6 {[%emt 0:00:09]} 27. gxf3 {[%emt 0:00:10]} Rd2 {[%emt 0:00:19]} 28. Kg3 {[%emt 0:01:50]} g5 {[%emt 0:02:59]} 29. a5 {[%emt 0:07:21]} Kf8 {[%emt 0:02:10]} 30. Ra2 {[%emt 0:01:41]} Ke7 {[%emt 0:00:57]} 31. Ra4 {[%emt 1:32:05]} Rxc2 {[%emt 1:30:55]} 32. Rb4 {[%emt 0:00:48]} Rc7 {[%emt 0:00:58]} 33. f4 {[%emt 0:00:18]} Ke6 {[%emt 0:03:05]} 34. fxg5 {[%emt 0:01:18]} hxg5 {[%emt 0:00:12]} 35. Kg4 {[%emt 0:00:52]} f6 {[%emt 0:01:24]} 36. h4 {[%emt 0:02:45]} gxh4 {[%emt 0:00:44]} 37. Kxh4 {[%emt 0:00:18]} Rg7 {[%emt 0:00:23]} 38. Rb5 {[%emt 0:07:09]} a6 {[%emt 0:02:45]} 39. Rc5 {[%emt 0:01:13]} f5 {[%emt 0:00:59]} 40. Kh3 {[%emt 0:00:38]} Rg4 {[%emt 0:01:02]} 41. Rc3 {[%emt 0:01:39]} Rb4 {[%emt 0:00:48]} 42. Kg3 {[%emt 0:00:00]} Rb5 {[%emt 0:00:00]} 43. Kf4 {[%emt 0:00:00]} Rxa5 {[%emt 0:00:00]} 44. Kg5 {[%emt 0:00:00]} Ke5 {[%emt 0:00:00]} 45. f4+ {[%emt 0:00:00]} Ke4 {[%emt 0:00:00]} 46. Rc4+ {[%emt 0:00:00]} Kd3 {[%emt 0:00:00]} 47. Rb4 {[%emt 0:00:00]} b5 {[%emt 0:00:00]} 48. Kxf5 {[%emt 0:00:00]} Kc3 {[%emt 0:00:00]} 49. Re4 {[%emt 0:00:00]} Kxb3 {[%emt 0:00:00]} 50. Ke6 {[%emt 0:00:00]} b4 {[%emt 0:00:00]} 51. Re5 {[%emt 0:00:00]} Rb5 {[%emt 0:00:00]} 52. Rxb5 {[%emt 0:00:00]} axb5 {[%emt 0:00:00]} 53. f5 {[%emt 0:00:00]} Ka2 {[%emt 0:00:00]} 54. f6 {[%emt 0:00:00]} b3 {[%emt 0:00:00]} 55. f7 {[%emt 0:00:00]} b2 {[%emt 0:00:00]} 56. f8=Q {[%emt 0:00:00]} b1=Q {[%emt 0:00:00]} 57. Qa8+ {[%emt 0:01:04]} Kb2 {[%emt 0:00:23]} 58. Qh8+ {[%emt 0:01:12]} Kb3 {[%emt 0:00:39]} 59. Qd4 {[%emt 0:04:18]} Qe1+ {[%emt 0:01:24]} 60. Kd5 {[%emt 0:00:54]} Qc3 {[%emt 0:00:29]} 61. Qd1+ {[%emt 1:30:28]} Ka3 {[%emt 1:30:15]} 62. Qf1 {[%emt 0:01:18]} b4 {[%emt 0:00:27]} 63. Qa6+ {[%emt 0:00:14]} Kb3 {[%emt 0:00:08]} 64. Qe2 {[%emt 0:01:06]} Ka3 {[%emt 0:00:08]} 65. Qa6+ {[%emt 0:00:09]} Kb2 {[%emt 0:00:11]} 66. Qe2+ {[%emt 0:00:23]} Qc2 {[%emt 0:00:11]} 67. Qe5+ {[%emt 0:01:15]} Ka2 {[%emt 0:00:06]} 68. Qb8 {[%emt 0:00:52]} Qd2+ {[%emt 0:00:40]} 69. Kc4 {[%emt 0:00:30]} Qe2+ {[%emt 0:00:47]} 70. Kc5 {[%emt 0:00:49]} b3 {[%emt 0:00:15]} 71. Qa7+ {[%emt 0:00:32]} Kb1 {[%emt 0:00:05]} 72. Kb4 {[%emt 0:00:22]} b2 {[%emt 0:02:13]} 73. Qh7+ {[%emt 0:00:29]} Kc1 {[%emt 0:00:07]} 74. Qh1+ {[%emt 0:00:19]} Kc2 {[%emt 0:03:01]} 75. Qh7+ {[%emt 0:00:49]} Qd3 {[%emt 0:00:15]} 76. Qc7+ {[%emt 0:00:09]} Kd1 0-1

[Event "GER-chT Youth Countries 2020"]
[Site "Berlin"]
[Date "2020.10.03"]
[Round "6"]
[White "Pikalow, Michael"]
[Black "Costa, Leonardo"]
[Result "0-1"]
[ECO "C72"]
[WhiteElo "2021"]
[BlackElo "2245"]
[Annotator "ChessBase"]
[PlyCount "53"]
[EventDate "2020.09.30"]
[EventType "team-tourn"]
[EventRounds "7"]
[EventCountry "GER"]
[SourceTitle "playchess.com"]
[Source "ChessBase"]
[SourceQuality "1"]
[TimeControl "30/5400+30:0"]

1. e4 {[%emt 0:00:00]} e5 {[%emt 0:00:00]} 2. Nf3 {[%emt 0:00:00]} Nc6 {[%emt 0:00:00]} 3. Bb5 {[%emt 0:00:00]} a6 {[%emt 0:00:00]} 4. Ba4 {[%emt 0:00:00]} d6 {[%emt 0:00:00]} 5. O-O {[%emt 0:01:05]} Bd7 {[%emt 0:00:00]} 6. c3 {[%emt 0:03:57]} g6 {[%emt 0:00:06]} 7. d4 {[%emt 0:01:04]} Bg7 {[%emt 0:00:08]} 8. Bg5 {[%emt 0:20:55]} Nf6 {[%emt 0:13:35]} 9. Bc2 {[%emt 0:03:07]} h6 {[%emt 0:01:45]} 10. Bxf6 {[%emt 0:15:25]} Qxf6 {[%emt 0:02:28]} 11. d5 {[%emt 0:07:09]} Ne7 {[%emt 0:00:22]} 12. Ne1 {[%emt 0:03:33]} g5 {[%emt 0:06:19]} 13. Nd2 {[%emt 0:05:34]} h5 {[%emt 0:04:24]} 14. Nd3 {[%emt 0:02:14]} Ng6 {[%emt 0:04:20]} 15. g3 {[%emt 0:04:50]} Bh3 {[%emt 0:04:04]} 16. Re1 {[%emt 0:05:48]} Bg4 {[%emt 0:01:16]} 17. f3 {[%emt 0:03:02]} Bd7 {[%emt 0:00:52]} 18. Rf1 {[%emt 0:01:07]} Bh6 {[%emt 0:06:46]} 19. Qe2 {[%emt 0:03:10]} Qg7 {[%emt 0:02:21]} 20. c4 {[%emt 0:03:30]} g4 {[%emt 0:05:54]} 21. Qf2 {[%emt 0:04:51]} gxf3 {[%emt 0:09:05]} 22. Bd1 {[%emt 0:00:43]} Bh3 {[%emt 0:06:05]} 23. Re1 {[%emt 0:01:50]} h4 {[%emt 0:06:00]} 24. Bxf3 {[%emt 0:01:37]} hxg3 {[%emt 0:01:42]} 25. hxg3 {[%emt 0:00:57]} Nf4 {[%emt 0:01:15]} 26. Re3 {[%emt 0:01:31]} Nxd5 {[%emt 0:01:08]} 27. Re2 {[%emt 0:02:32]} 0-1

[Event "GER-chT Youth Countries 2020"]
[Site "Berlin"]
[Date "2020.10.03"]
[Round "6"]
[White "Nguyen, Ha Thanh"]
[Black "Basovskiy, Jana"]
[Result "1-0"]
[ECO "B40"]
[WhiteElo "2019"]
[BlackElo "1760"]
[Annotator "ChessBase"]
[PlyCount "71"]
[EventDate "2020.09.30"]
[EventType "team-tourn"]
[EventRounds "7"]
[EventCountry "GER"]
[SourceTitle "playchess.com"]
[Source "ChessBase"]
[SourceQuality "1"]
[TimeControl "30/5400+30:0"]

1. e4 {[%emt 0:00:00]} c5 {[%emt 0:00:00]} 2. Nf3 {[%emt 0:00:00]} e6 {[%emt 0:00:00]} 3. d4 {[%emt 0:00:00]} cxd4 {[%emt 0:00:00]} 4. Nxd4 {[%emt 0:00:03]} Nf6 {[%emt 0:00:00]} 5. Bd3 {[%emt 0:00:50]} Nc6 {[%emt 0:00:41]} 6. Nxc6 {[%emt 0:02:03]} bxc6 {[%emt 0:00:21]} 7. Qe2 {[%emt 0:01:00]} d5 {[%emt 0:04:08]} 8. Nd2 {[%emt 0:04:41]} Be7 {[%emt 0:03:35]} 9. O-O {[%emt 0:00:28]} O-O {[%emt 0:03:11]} 10. b3 {[%emt 0:06:59]} Qc7 {[%emt 0:07:07]} 11. c4 {[%emt 0:14:42]} Bb7 {[%emt 0:13:35]} 12. e5 {[%emt 0:03:23]} Nd7 {[%emt 0:03:11]} 13. Bb2 {[%emt 0:01:08]} Rfe8 {[%emt 0:06:31]} 14. Rae1 {[%emt 0:08:18]} a5 {[%emt 0:12:09]} 15. Qg4 {[%emt 0:04:02]} Bb4 {[%emt 0:02:56]} 16. Re2 {[%emt 0:02:40]} Qb6 {[%emt 0:13:31]} 17. Nf3 {[%emt 0:04:13]} Nf8 {[%emt 0:04:46]} 18. Bc1 {[%emt 0:03:46]} a4 {[%emt 0:06:52]} 19. Nh4 {[%emt 0:09:05]} axb3 {[%emt 0:05:03]} 20. axb3 {[%emt 0:00:14]} Ra1 {[%emt 0:02:55]} 21. h3 {[%emt 0:12:18]} Rea8 {[%emt 0:01:07]} 22. Kh2 {[%emt 0:01:00]} Be7 {[%emt 0:02:36]} 23. Re3 {[%emt 0:07:02]} Qc7 {[%emt 0:02:05]} 24. Ree1 {[%emt 0:04:28]} g6 {[%emt 0:01:35]} 25. f4 {[%emt 0:03:08]} Bb4 {[%emt 0:00:49]} 26. Rd1 {[%emt 0:02:25]} c5 {[%emt 0:01:19]} 27. Qg3 {[%emt 0:00:41]} d4 {[%emt 0:01:30]} 28. f5 {[%emt 0:00:45]} exf5 {[%emt 0:00:48]} 29. Nxf5 {[%emt 0:00:14]} Ne6 {[%emt 0:00:43]} 30. Nh6+ {[%emt 0:00:29]} Kh8 {[%emt 0:00:20]} 31. Nxf7+ {[%emt 1:31:08]} Kg8 {[%emt 1:30:09]} 32. Nh6+ {[%emt 0:01:08]} Kh8 {[%emt 0:00:18]} 33. Nf7+ {[%emt 0:00:04]} Kg8 {[%emt 0:00:05]} 34. Nd6 {[%emt 0:00:12]} Rf8 {[%emt 0:01:37]} 35. Rxf8+ {[%emt 0:00:37]} Nxf8 {[%emt 0:00:03]} 36. Rf1 {[%emt 0:00:26]} 1-0

[Event "GER-chT Youth Countries 2020"]
[Site "Berlin"]
[Date "2020.10.03"]
[Round "6"]
[White "Bashylina, Luisa"]
[Black "Poetsch, Leonore"]
[Result "1/2-1/2"]
[ECO "C05"]
[WhiteElo "2005"]
[BlackElo "1984"]
[Annotator "ChessBase"]
[PlyCount "75"]
[EventDate "2020.09.30"]
[EventType "team-tourn"]
[EventRounds "7"]
[EventCountry "GER"]
[SourceTitle "playchess.com"]
[Source "ChessBase"]
[SourceQuality "1"]
[TimeControl "30/5400+30:0"]

1. e4 e6 2. d4 {[%emt 0:00:00]} d5 {[%emt 0:00:00]} 3. Nd2 {[%emt 0:00:00]} Nf6 {[%emt 0:00:00]} 4. e5 {[%emt 0:00:00]} Nfd7 {[%emt 0:00:00]} 5. f4 {[%emt 0:00:00]} c5 {[%emt 0:00:00]} 6. c3 {[%emt 0:00:00]} Nc6 7. Ndf3 {[%emt 0:00:00]} cxd4 {[%emt 0:00:13]} 8. cxd4 {[%emt 0:00:41]} a5 {[%emt 0:00:22]} 9. Bd3 {[%emt 0:01:51]} a4 {[%emt 0:01:15]} 10. Ne2 {[%emt 0:03:10]} Nb6 {[%emt 0:01:09]} 11. O-O {[%emt 0:06:27]} g6 {[%emt 0:02:06]} 12. Nc3 {[%emt 0:06:14]} h5 {[%emt 0:03:28]} 13. Qe1 {[%emt 0:10:20]} Na5 {[%emt 0:05:29]} 14. Qg3 {[%emt 0:03:21]} Nac4 {[%emt 0:05:47]} 15. Ng5 {[%emt 0:02:03]} Rg8 {[%emt 0:01:16]} 16. Nh7 {[%emt 0:03:23]} Be7 {[%emt 0:06:31]} 17. f5 {[%emt 0:03:37]} exf5 {[%emt 0:06:26]} 18. Bxf5 {[%emt 0:00:10]} Bxf5 {[%emt 0:09:12]} 19. Rxf5 {[%emt 0:01:05]} h4 {[%emt 0:04:11]} 20. Qg4 {[%emt 0:01:00]} Qd7 {[%emt 0:00:59]} 21. Rf4 {[%emt 0:00:15]} Qxg4 {[%emt 0:03:22]} 22. Rxg4 {[%emt 0:08:10]} Rh8 {[%emt 0:13:08]} 23. Ng5 {[%emt 0:14:19]} Rh5 {[%emt 0:04:41]} 24. Rb1 {[%emt 0:00:45]} f5 {[%emt 0:00:12]} 25. exf6 {[%emt 0:04:45]} Bxf6 {[%emt 0:02:47]} 26. Ne6 {[%emt 0:01:39]} Kf7 {[%emt 0:07:17]} 27. Nc5 {[%emt 0:07:16]} Nd6 {[%emt 0:03:38]} 28. Be3 {[%emt 0:03:27]} Nbc4 {[%emt 0:02:10]} 29. Bf2 {[%emt 0:03:44]} b5 {[%emt 0:04:00]} 30. Nd7 {[%emt 0:02:35]} Be7 {[%emt 0:02:21]} 31. b3 {[%emt 1:30:15]} axb3 {[%emt 1:31:17]} 32. axb3 {[%emt 0:01:31]} Nd2 {[%emt 0:08:27]} 33. Re1 {[%emt 0:01:08]} N2e4 34. Nxe4 {[%emt 0:00:12]} Nxe4 {[%emt 0:01:27]} 35. Ne5+ {[%emt 0:00:24]} Rxe5 {[%emt 0:01:59]} 36. dxe5 {[%emt 0:04:55]} g5 {[%emt 0:00:39]} 37. g3 {[%emt 0:00:30]} h3 {[%emt 0:00:30]} 38. Rgxe4 {[%emt 0:00:30]} 1/2-1/2

[Event "GER-chT Youth Countries 2020"]
[Site "Berlin"]
[Date "2020.10.03"]
[Round "6"]
[White "Farokhi, Keyvan"]
[Black "Viet, Silas"]
[Result "1-0"]
[ECO "B67"]
[WhiteElo "2001"]
[BlackElo "1846"]
[Annotator "ChessBase"]
[PlyCount "45"]
[EventDate "2020.09.30"]
[EventType "team-tourn"]
[EventRounds "7"]
[EventCountry "GER"]
[SourceTitle "playchess.com"]
[Source "ChessBase"]
[SourceQuality "1"]
[TimeControl "30/5400+30:0"]

1. e4 {[%emt 0:00:00]} c5 {[%emt 0:00:00]} 2. Nf3 {[%emt 0:00:00]} d6 {[%emt 0:00:00]} 3. d4 {[%emt 0:00:00]} cxd4 {[%emt 0:00:00]} 4. Nxd4 {[%emt 0:00:04]} Nf6 {[%emt 0:00:00]} 5. Nc3 {[%emt 0:00:11]} Nc6 {[%emt 0:00:00]} 6. Bg5 {[%emt 0:00:52]} e6 {[%emt 0:00:05]} 7. Qd2 {[%emt 0:00:09]} a6 {[%emt 0:00:06]} 8. O-O-O {[%emt 0:00:14]} Bd7 {[%emt 0:00:07]} 9. f4 {[%emt 0:00:10]} b5 {[%emt 0:00:05]} 10. Bxf6 {[%emt 0:00:43]} gxf6 {[%emt 0:00:34]} 11. Kb1 {[%emt 0:00:20]} Qb6 {[%emt 0:00:09]} 12. Nxc6 {[%emt 0:00:10]} Bxc6 {[%emt 0:00:07]} 13. f5 {[%emt 0:00:07]} O-O-O {[%emt 0:00:08]} 14. Qf4 {[%emt 0:08:47]} Be7 {[%emt 0:09:29]} 15. a3 {[%emt 0:03:24]} a5 {[%emt 0:10:52]} 16. fxe6 {[%emt 0:07:18]} fxe6 {[%emt 0:00:09]} 17. Qg4 {[%emt 0:00:08]} Bd7 {[%emt 0:04:37]} 18. Bxb5 {[%emt 0:00:56]} Bxb5 {[%emt 0:12:26]} 19. Nd5 {[%emt 0:00:23]} Qb7 {[%emt 0:04:08]} 20. Qxe6+ {[%emt 0:00:10]} Bd7 {[%emt 0:00:19]} 21. Qxe7 {[%emt 0:00:24]} Rhe8 {[%emt 0:03:14]} 22. Qxd6 {[%emt 0:00:11]} Re6 {[%emt 0:02:15]} 23. Ne7+ {[%emt 0:00:08]} 1-0

[Event "GER-chT Youth Countries 2020"]
[Site "Berlin"]
[Date "2020.10.03"]
[Round "6"]
[White "Moenster, Madita"]
[Black "Yue, Qizhou"]
[Result "1/2-1/2"]
[ECO "B48"]
[WhiteElo "1918"]
[BlackElo "1775"]
[Annotator "ChessBase"]
[PlyCount "155"]
[EventDate "2020.09.30"]
[EventType "team-tourn"]
[EventRounds "7"]
[EventCountry "GER"]
[SourceTitle "playchess.com"]
[Source "ChessBase"]
[SourceQuality "1"]
[TimeControl "30/5400+30:0"]

1. e4 {[%emt 0:00:00]} c5 {[%emt 0:00:00]} 2. Nf3 {[%emt 0:00:00]} e6 {[%emt 0:00:00]} 3. d4 {[%emt 0:00:00]} cxd4 {[%emt 0:00:00]} 4. Nxd4 {[%emt 0:00:00]} Nc6 {[%emt 0:00:00]} 5. Nc3 Qc7 {[%emt 0:00:00]} 6. Be3 {[%emt 0:00:07]} a6 {[%emt 0:00:07]} 7. Qf3 {[%emt 0:00:00]} Ne5 {[%emt 0:00:31]} 8. Qg3 {[%emt 0:00:05]} h5 {[%emt 0:00:10]} 9. Nf5 {[%emt 0:00:12]} exf5 {[%emt 0:21:06]} 10. Nd5 {[%emt 0:00:16]} Qb8 {[%emt 0:13:38]} 11. Bb6 {[%emt 0:19:37]} Bd6 {[%emt 0:02:19]} 12. Qxg7 {[%emt 0:05:05]} Ng6 {[%emt 0:07:54]} 13. Bc4 {[%emt 0:15:44]} Nh6 {[%emt 0:00:09]} 14. Nf6+ {[%emt 0:04:34]} Ke7 {[%emt 0:02:30]} 15. Bxf7 {[%emt 0:01:54]} Nxf7 {[%emt 0:00:40]} 16. Nd5+ {[%emt 0:00:44]} Ke8 {[%emt 0:13:50]} 17. Qxg6 {[%emt 0:02:47]} Be5 {[%emt 0:08:08]} 18. O-O-O {[%emt 0:15:07]} Kf8 {[%emt 0:01:00]} 19. Qxf5 {[%emt 0:04:14]} d6 {[%emt 0:01:14]} 20. Qf3 {[%emt 0:01:32]} Bg4 {[%emt 0:01:10]} 21. Qb3 {[%emt 0:00:32]} Bxd1 {[%emt 0:03:00]} 22. Rxd1 {[%emt 0:01:55]} Qc8 {[%emt 0:04:36]} 23. f4 {[%emt 0:00:47]} Bg7 {[%emt 0:03:21]} 24. Nc7 {[%emt 0:00:30]} Rb8 {[%emt 0:01:12]} 25. Ne6+ {[%emt 0:06:49]} Kg8 {[%emt 0:00:08]} 26. Nxg7 {[%emt 0:00:30]} Kxg7 {[%emt 0:00:30]} 27. Bd4+ {[%emt 0:00:04]} Kf8 {[%emt 0:00:10]} 28. Bxh8 {[%emt 0:01:08]} Nxh8 {[%emt 0:00:46]} 29. Qd5 {[%emt 0:01:11]} Nf7 {[%emt 0:01:34]} 30. Qxh5 {[%emt 0:00:50]} Qc4 {[%emt 0:01:37]} 31. Qd5 {[%emt 1:36:13]} Qe2 {[%emt 1:31:46]} 32. e5 {[%emt 0:01:18]} Rc8 33. Qd2 {[%emt 0:00:07]} Qxd2+ {[%emt 0:00:55]} 34. Rxd2 {[%emt 0:00:38]} dxe5 {[%emt 0:00:00]} 35. fxe5 {[%emt 0:03:51]} Nxe5 {[%emt 0:01:41]} 36. h3 {[%emt 0:04:45]} Ke7 {[%emt 0:00:44]} 37. b3 {[%emt 0:00:43]} Rf8 {[%emt 0:00:45]} 38. Re2 {[%emt 0:00:27]} Kd6 {[%emt 0:00:51]} 39. Kd2 {[%emt 0:00:51]} Nc6 {[%emt 0:02:26]} 40. c3 {[%emt 0:04:18]} Rf1 {[%emt 0:00:00]} 41. Ke3 {[%emt 0:00:00]} Ne5 {[%emt 0:00:00]} 42. Ke4 {[%emt 0:00:00]} Ng6 {[%emt 0:00:00]} 43. g4 {[%emt 0:00:00]} Nh4 {[%emt 0:00:00]} 44. Re3 {[%emt 0:00:00]} Rf2 {[%emt 0:00:00]} 45. a4 {[%emt 0:00:00]} Rf1 {[%emt 0:00:00]} 46. Rg3 {[%emt 0:00:00]} Ng6 {[%emt 0:00:00]} 47. Rf3 {[%emt 0:00:00]} Re1+ {[%emt 0:01:07]} 48. Kd4 {[%emt 0:00:00]} Rd1+ {[%emt 0:00:33]} 49. Ke3 {[%emt 0:00:00]} Ne5 {[%emt 0:02:32]} 50. Rg3 {[%emt 0:00:00]} Rb1 {[%emt 0:04:27]} 51. b4 {[%emt 0:01:54]} b6 {[%emt 0:00:56]} 52. h4 {[%emt 0:00:12]} Rh1 {[%emt 0:01:25]} 53. h5 {[%emt 0:00:33]} Ke6 {[%emt 0:00:21]} 54. Kf4 {[%emt 0:00:35]} Rf1+ {[%emt 0:00:59]} 55. Kg5 {[%emt 0:01:36]} Nf7+ {[%emt 0:00:41]} 56. Kg6 {[%emt 0:00:45]} Ne5+ {[%emt 0:00:16]} 57. Kg5 {[%emt 0:00:44]} Nf7+ 58. Kh4 {[%emt 0:00:05]} Rh1+ {[%emt 0:01:09]} 59. Rh3 {[%emt 0:00:30]} Rg1 {[%emt 0:02:07]} 60. Re3+ {[%emt 0:01:05]} Kf6 {[%emt 0:00:54]} 61. Rd3 {[%emt 1:30:52]} Ke7 {[%emt 1:30:32]} 62. Rd5 {[%emt 0:00:55]} Ke6 63. Rd4 {[%emt 0:00:04]} Rh1+ {[%emt 0:01:18]} 64. Kg3 {[%emt 0:01:04]} Ng5 {[%emt 0:00:38]} 65. c4 {[%emt 0:00:48]} Nf7 {[%emt 0:00:23]} 66. b5 {[%emt 0:00:10]} axb5 {[%emt 0:00:46]} 67. cxb5 {[%emt 0:00:20]} Ke5 {[%emt 0:00:47]} 68. Rc4 {[%emt 0:00:41]} Ng5 {[%emt 0:00:14]} 69. Rc6 Rh3+ {[%emt 0:00:21]} 70. Kg2 {[%emt 0:00:43]} Ra3 {[%emt 0:00:29]} 71. Rxb6 {[%emt 0:01:36]} Ra2+ {[%emt 0:00:20]} 72. Kg3 {[%emt 0:00:22]} Ra3+ {[%emt 0:00:29]} 73. Kf2 {[%emt 0:00:45]} Rxa4 {[%emt 0:00:09]} 74. Kg3 {[%emt 0:00:30]} Ra3+ {[%emt 0:00:28]} 75. Kf2 {[%emt 0:00:34]} Ra4 {[%emt 0:00:44]} 76. Rc6 {[%emt 0:00:34]} Rxg4 {[%emt 0:00:21]} 77. b6 {[%emt 0:00:31]} Rb4 78. Ke3 1/2-1/2

[Event "GER-chT Youth Countries 2020"]
[Site "Berlin"]
[Date "2020.10.03"]
[Round "6"]
[White "Chassard, Cedric"]
[Black "Nguyen, Alex Dac-Vuong"]
[Result "1-0"]
[ECO "C06"]
[WhiteElo "1916"]
[BlackElo "2343"]
[Annotator "ChessBase"]
[PlyCount "111"]
[EventDate "2020.09.30"]
[EventType "team-tourn"]
[EventRounds "7"]
[EventCountry "GER"]
[SourceTitle "playchess.com"]
[Source "ChessBase"]
[SourceQuality "1"]
[TimeControl "30/5400+30:0"]

1. e4 {[%emt 0:00:00]} e6 {[%emt 0:00:00]} 2. d4 {[%emt 0:00:00]} d5 {[%emt 0:00:00]} 3. Nd2 {[%emt 0:00:00]} Nf6 {[%emt 0:00:00]} 4. e5 {[%emt 0:00:00]} Nfd7 {[%emt 0:00:00]} 5. Bd3 {[%emt 0:00:00]} c5 {[%emt 0:00:00]} 6. c3 {[%emt 0:00:00]} Nc6 {[%emt 0:00:03]} 7. Ne2 {[%emt 0:00:02]} cxd4 {[%emt 0:00:17]} 8. cxd4 {[%emt 0:00:02]} f6 {[%emt 0:00:07]} 9. exf6 {[%emt 0:00:02]} Nxf6 {[%emt 0:00:06]} 10. Nf3 {[%emt 0:00:07]} Bd6 {[%emt 0:00:09]} 11. O-O {[%emt 0:00:02]} Qc7 {[%emt 0:00:08]} 12. h3 {[%emt 0:00:25]} O-O {[%emt 0:00:08]} 13. Re1 {[%emt 0:00:02]} Bd7 {[%emt 0:00:13]} 14. Be3 {[%emt 0:00:04]} Be8 {[%emt 0:00:27]} 15. Ng5 {[%emt 0:02:19]} Bf7 {[%emt 0:06:13]} 16. Rc1 {[%emt 0:15:33]} h6 {[%emt 0:03:06]} 17. Nxf7 {[%emt 0:04:08]} Qxf7 {[%emt 0:00:56]} 18. Bb1 {[%emt 0:01:09]} Rae8 {[%emt 0:01:55]} 19. Qc2 {[%emt 0:09:07]} Ne7 {[%emt 0:10:26]} 20. Bf4 {[%emt 0:03:50]} Bxf4 {[%emt 0:02:58]} 21. Nxf4 {[%emt 0:00:11]} Ne4 {[%emt 0:00:51]} 22. f3 {[%emt 0:01:08]} Qxf4 {[%emt 0:24:42]} 23. fxe4 {[%emt 0:02:58]} Rc8 {[%emt 0:00:15]} 24. Qd1 {[%emt 0:01:44]} Qf2+ {[%emt 0:08:59]} 25. Kh1 {[%emt 0:03:57]} Qxb2 {[%emt 0:02:03]} 26. Rxc8 {[%emt 0:01:55]} Rxc8 {[%emt 0:01:56]} 27. exd5 {[%emt 0:01:05]} Nxd5 {[%emt 0:00:39]} 28. Qg4 {[%emt 0:02:23]} Rc6 {[%emt 0:05:21]} 29. Bg6 {[%emt 0:10:55]} Qb6 {[%emt 0:18:20]} 30. Qf3 {[%emt 0:02:35]} Nf6 {[%emt 0:00:10]} 31. d5 {[%emt 1:33:44]} Rd6 {[%emt 1:33:31]} 32. dxe6 {[%emt 0:06:23]} Rxe6 {[%emt 0:00:05]} 33. Rb1 {[%emt 0:01:21]} Qa5 {[%emt 0:05:27]} 34. Qg3 {[%emt 0:05:17]} Qe5 {[%emt 0:03:51]} 35. Qxe5 {[%emt 0:01:13]} Rxe5 {[%emt 0:00:05]} 36. Rxb7 {[%emt 0:00:06]} Nh7 {[%emt 0:02:16]} 37. Rxa7 {[%emt 0:00:48]} Nf8 {[%emt 0:00:17]} 38. Ra8 {[%emt 0:00:27]} Re6 {[%emt 0:00:23]} 39. Bd3 {[%emt 0:02:57]} Rf6 {[%emt 0:00:43]} 40. h4 {[%emt 0:00:53]} h5 {[%emt 0:00:48]} 41. g4 {[%emt 0:03:35]} hxg4 {[%emt 0:00:28]} 42. h5 {[%emt 0:01:05]} Kf7 {[%emt 0:00:00]} 43. Bc4+ {[%emt 0:00:00]} Ke7 {[%emt 0:00:00]} 44. Ra7+ {[%emt 0:00:00]} Kd6 {[%emt 0:00:00]} 45. Rxg7 {[%emt 0:00:00]} Rf5 {[%emt 0:00:00]} 46. Bf7 {[%emt 0:00:00]} Ke5 {[%emt 0:00:00]} 47. Be8 {[%emt 0:00:00]} Ne6 {[%emt 0:00:00]} 48. Rxg4 {[%emt 0:00:00]} Rf1+ {[%emt 0:00:00]} 49. Kg2 Ra1 50. a4 {[%emt 0:00:00]} Nf4+ 51. Kg3 {[%emt 0:00:00]} Ne2+ {[%emt 0:04:38]} 52. Kh2 {[%emt 0:00:00]} Nf4 {[%emt 0:01:22]} 53. h6 {[%emt 0:00:00]} Ra2+ {[%emt 0:00:27]} 54. Kg3 {[%emt 0:00:00]} Ra3+ {[%emt 0:00:20]} 55. Kh4 {[%emt 0:00:00]} Rh3+ {[%emt 0:00:33]} 56. Kg5 {[%emt 0:00:00]} 1-0